Cogmind - Beta 11 X5 @@@ ROGUE MODE // 2021.06.04 @ 11:58:17 Player: JuliaScythe Result: Destroyed by G-34 Mercenary with Small Laser Performance ------------- Evolutions (1) 500 Regions Visited (2) 400 Robots Destroyed (12) 60 Value Destroyed (204) 204 Prototype IDs (0) 0 Alien Tech Used (0) 0 Bonus (0) 0 TOTAL SCORE: 1164 Bonus ------- None Cogmind --------- Core Integrity 0/400 Matter 268/300 Energy 100/100 System Corruption 0% Temperature Cool (6) Movement Core (100) Ox1 Location -9/Materials Parts ------- > --- POWER (1) -------- (None) > --- PROPULSION (3) --- (None) > --- UTILITY (3) ------ Small Storage Unit > --- WEAPON (2) ------- (None) > --- INVENTORY (8) ---- Light Ion Engine Light Treads Light Treads Aluminum Leg Aluminum Leg Large Storage Unit Terrain Scanner Peak State ------------ > --- POWER ------------ Ion Engine > --- PROPULSION ------- Wheel Compact Wheel > --- UTILITY ---------- Small Storage Unit > --- WEAPON ----------- Heavy EM Pulse Gun Assault Rifle > --- INVENTORY -------- Light Ion Engine Light Treads Light Treads Aluminum Leg Aluminum Leg Large Storage Unit Terrain Scanner Medium Laser [Rating: 7] Favorites ----------- Power Ion Engine Engine Ion Engine Propulsion Compact Wheel Leg Aluminum Leg Wheel Compact Wheel Utility Small Storage Unit Storage Small Storage Unit Protection Hardened Light Armor Plating Weapon Assault Rifle Energy Gun Heavy EM Pulse Gun Ballistic Gun Assault Rifle Build | -11 -10 -9 ------- Run | Scr Mat Mat Slots Evolved 2 | . . 2 Power . | . . . Propulsion 1 | . . 1 Utility 1 | . . 1 Weapon . | . . . Parts Attached 5 | . 2 3 Power . | . . . Engine . | . . . Core . | . . . Reactor . | . . . Propulsion 2 | . 2 . Treads . | . . . Leg . | . . . Wheel 2 | . 2 . Hover . | . . . Flight . | . . . Utility 1 | . . 1 Device . | . . . Storage . | . . . Processor . | . . . Hackware . | . . . Protection 1 | . . 1 Artifact . | . . . Weapon 2 | . . 2 Energy Gun 2 | . . 2 Energy Cannon . | . . . Ballistic Gun . | . . . Ballistic Cannon . | . . . Launcher . | . . . Special Weapon . | . . . Impact Weapon . | . . . Slashing Weapon . | . . . Piercing Weapon . | . . . Special Melee Weapon . | . . . Unidentified Prototypes . | . . . Parts Lost 7 | . . 7 Power 1 | . . 1 Propulsion 2 | . . 2 Utility 1 | . . 1 Weapon 3 | . . 3 Highest Loss Streak 7 | . . 7 Average Slot Usage (%) 76 | . 85 58 Engine 12 | . 14 9 Leg 1 | . 1 . Wheel 23 | . 26 16 Storage 13 | . 14 11 Energy Gun 2 | . . 7 Ballistic Gun 23 | . 28 12 Naked Turns . | . . . Heaviest Build 19 | 13 13 19 Greatest Support 26 | 20 26 26 Greatest Overweight (x) 6 | . . 6 Average Overweight (x) . | . . . Largest Inventory Capacity 8 | 8 8 8 Average Capacity 8 | 8 8 8 Most Carried 8 | 6 8 8 Average Carried 7 | 6 7 7 Final Capacity 8 | 8 8 8 Final Carried 8 | 6 8 7 Class Distribution -------------------- 100% | Mutant Dominant Class ---------------- Mutant | -10/Materials Mutant | -9/Materials Resources | -11 -10 -9 ----------- Run | Scr Mat Mat Matter Collected 240 | 193 34 13 Remotely . | . . . Salvage Created 218 | . 176 42 Parts 20 | . 13 7 Haulers Intercepted . | . . . Recyclers Shooed 1 | . . 1 Parts Field Recycled . | . . . Retrieved Matter . | . . . Parts Self-Destructed . | . . . Prevented . | . . . Kills | -11 -10 -9 ------- Run | Scr Mat Mat Combat Hostiles Destroyed 8 | . 6 2 Guns 6 | . 4 2 AOE 2 | . 2 . Classes Destroyed 4 | . 4 . Worker 3 | . 2 1 Watcher 1 | . 1 . Swarmer 5 | . 3 2 Grunt 3 | . 3 . Best Kill Streak 8 | . 8 3 Combat Bots Only 5 | . 5 2 Max Kills in Single Turn 4 | . 4 1 Gunslinging . | . . . Exploded 2 | . 2 . Melee . | . . . Uniques/NPCs Destroyed . | . . . Combat | -11 -10 -9 -------- Run | Scr Mat Mat Damage Taken 1136 | . 143 993 Core 468 | . 57 411 Absorbed by Shields . | . . . Core Remaining (%) 88 | 100 77 . Volleys Fired 17 | . 8 9 Largest 2 | . 2 2 Hottest 70 | . 40 70 Shots Fired 34 | . 16 18 Gun 34 | . 16 18 Cannon . | . . . Launcher . | . . . Special . | . . . Kinetic 25 | . 16 9 Thermal 1 | . . 1 Explosive . | . . . Electromagnetic 8 | . . 8 Robot Hit Streak 6 | . 6 6 Robot Miss Streak 3 | . 2 3 Penetration Max . | . . . Secondary Targets 2 | . 2 . Max Gunslinging Chain 1 | . 1 . Shots Hit Robots 20 | . 10 10 Core Hits 16 | . 12 4 Critical Kills . | . . . Critical Parts Destroyed 1 | . 1 . Critical Strikes 1 | . 1 . Destroy 1 | . 1 . Melee Attacks . | . . . Impact . | . . . Slashing . | . . . Piercing . | . . . Sneak Attacks . | . . . Combat Hostiles . | . . . Follow-up Attacks . | . . . Damage Inflicted 682 | . 523 159 Guns 269 | . 110 159 Cannons . | . . . Explosions 413 | . 413 . Melee . | . . . Ramming . | . . . Kinetic 177 | . 110 67 Thermal 12 | . . 12 Explosive 413 | . 413 . Electromagnetic 80 | . . 80 Impact . | . . . Slashing . | . . . Piercing . | . . . Highest Corruption . | . . . Average Corruption . | . . . Corruption Purged . | . . . Overload Shots . | . . . Overflow Damage 37 | . 37 . Projectiles . | . . . Explosions 37 | . 37 . Melee . | . . . Knockbacks . | . . . Impact . | . . . Kinetic . | . . . Secondary . | . . . Self-Inflicted Damage . | . . . Shots . | . . . Rammed 1 | . . 1 Targets Rammed 1 | . . 1 Kicked . | . . . Crushed . | . . . Highest Temperature 28 | . 12 28 Average Temperature 13 | . 8 15 Received Heat Transfer 531 | . 42 489 Siege Activations . | . . . Robots Corrupted . | . . . Combat Hostiles . | . . . Parts Fried . | . . . Impact Corruptions . | . . . Robots Melted . | . . . Combat Hostiles . | . . . Parts Melted . | . . . Heat Transferred 37 | . . 37 Parts Sabotaged . | . . . Parts Stolen . | . . . Parts Stripped . | . . . Power Chain Reactions . | . . . Missiles Intercepted . | . . . Alert | -11 -10 -9 ------- Run | Scr Mat Mat Peak Influence 339 | . 339 193 Initial 63 | . . 63 Average 120 | . 123 114 Maximum Alert Level 1 | . 1 . Low Security (%) 88 | 100 83 100 Level 1 11 | . 16 . Level 2 . | . . . Level 3 . | . . . Level 4 . | . . . Level 5 . | . . . High Security . | . . . Max Security . | . . . Squads Dispatched 5 | . 3 2 Investigation 1 | . 1 . Extermination . | . . . Reinforcement 4 | . 2 2 Assault . | . . . Garrison . | . . . Intercept . | . . . Construction Impeded . | . . . Haulers Reinforced . | . . . Cargo Convoy Interrupts . | . . . Stealth | -11 -10 -9 --------- Run | Scr Mat Mat Distress Signals 8 | . 3 5 Communications Jammed . | . . . Distress Signals . | . . . Times Spotted 31 | . 10 21 Peak Tracking Total 13 | . 7 13 Tactical Retreats 4 | . 1 3 Traps | -11 -10 -9 ------- Run | Scr Mat Mat Traps Triggered . | . . . Indirectly . | . . . Trap Hack Attempts . | . . . Triggered . | . . . Disarmed . | . . . Reprogrammed . | . . . Reused . | . . . Traps Extracted . | . . . Installed . | . . . Triggered . | . . . Machines | -11 -10 -9 ---------- Run | Scr Mat Mat Machines Disabled 2 | . 2 . Max in Single Turn 1 | . 1 . Machines Sabotaged . | . . . Garrisons Compromised . | . . . Overloaded Fab Kills . | . . . Fab Network Shutdowns . | . . . Hacking | -11 -10 -9 --------- Run | Scr Mat Mat Machines Accessed 8 | . 8 . Terminals 5 | . 5 . Fabricators . | . . . Repair Stations 1 | . 1 . Recycling Units 2 | . 2 . Scanalyzers . | . . . Garrison Access . | . . . Total Hacks 17 | . 17 . Successful 14 | . 14 . Failed 3 | . 3 . Catastrophic . | . . . Database Lockouts . | . . . Manual 6 | . 6 . Terminals 12 | . 12 . Fabricators . | . . . Repair Stations 1 | . 1 . Recycling Units 4 | . 4 . Scanalyzers . | . . . Garrison Access . | . . . Terminal Hacks 6 | . 6 . Branch Access Points 1 | . 1 . Patrol Status 2 | . 2 . Recall Investigation 1 | . 1 . Hauler Manifests 1 | . 1 . Registered Prototypes 1 | . 1 . Fabricator Hacks . | . . . Repair Station Hacks . | . . . Recycling Unit Hacks 3 | . 3 . Report Inventory 2 | . 2 . Retrieve Components 1 | . 1 . Scanalyzer . | . . . Garrison Access Hacks . | . . . Unauthorized Hacks 5 | . 5 . Terminals 3 | . 3 . Assimilate 1 | . 1 . Botnet 1 | . 1 . Detonate 1 | . 1 . Fabricators . | . . . Repair Stations 1 | . 1 . Mechanics 1 | . 1 . Recycling Units 1 | . 1 . Monitor 1 | . 1 . Scanalyzers . | . . . Garrison Access . | . . . Data Cores Recovered . | . . . Used . | . . . Hacking Detections 6 | . 6 . Full Trace Events . | . . . Feedback Events . | . . . Feedback Blocked . | . . . Robot Schematics Acquired . | . . . Robots Built . | . . . Matter . | . . . Time . | . . . Total Robot Build Rating . | . . . Part Schematics Acquired . | . . . Parts Built . | . . . Matter . | . . . Time . | . . . Total Part Build Rating . | . . . Parts Repaired . | . . . Time . | . . . Parts Recycled . | . . . Recycled Matter . | . . . Retrieved Matter . | . . . Retrieved Components 3 | . 3 . Parts Scanalyzed . | . . . Part Schematics Acquired . | . . . Parts Damaged . | . . . Bothacking | -11 -10 -9 ------------ Run | Scr Mat Mat Used RIF Installer . | . . . Robots Hacked . | . . . Non-combat . | . . . Combat . | . . . Robot Hacks Applied . | . . . Relay Couplers Released . | . . . Robots Rewired . | . . . Allies Hacked . | . . . Hacks Repelled . | . . . Allies | -11 -10 -9 -------- Run | Scr Mat Mat Total Allies 1 | . 1 . Largest Group 1 | . 1 . Highest-Rated Group 10 | . 10 . Highest-Rated Ally 10 | . 10 . Total Orders . | . . . Ally Attacks . | . . . Total Damage . | . . . Kills . | . . . Allies Corrupted . | . . . Allies Melted . | . . . Intel | -11 -10 -9 ------- Run | Scr Mat Mat Robot Analysis Total . | . . . Derelict Logs Recovered . | . . . Drone Launches . | . . . Drone Recoveries . | . . . Exploration | -11 -10 -9 ------------- Run | Scr Mat Mat Turns Passed 695 | 3 478 214 Spaces Moved 564 | 3 390 171 Core 27 | . . 27 Treads . | . . . Legs 23 | 3 20 . Wheels 514 | . 370 144 Hover . | . . . Flight . | . . . Fastest Speed 90 | 120 90 90 Average Speed 96 | 120 91 105 Slowest Speed 350 | 120 120 350 Overloaded Moves . | . . . Propulsion Burnouts . | . . . Robots Hopped . | . . . Cave-ins Triggered . | . . . Exploration Rate (%) 30 | 2 66 22 Regions Visited 2 Branch Regions . Pre-discovered Areas . | . . . Known Exits Taken . | . . . Unknown Exits Taken 2 | 1 1 . Scrap Searched . | . . . Spaces Dug . | . . . Terrain Destroyed 36 | . 36 . Melee . | . . . Projectile . | . . . AOE 36 | . 36 . Terrain Rammed . | . . . Walls Destroyed . | . . . Machines Disabled . | . . . Actions | -11 -10 -9 --------- Run | Scr Mat Mat Total 682 | 2 495 185 Wait 94 | . 94 . Move 562 | 2 389 171 Hop . | . . . Pick Up 2 | . 2 . Fast Attach 2 | . . 2 Attach 1 | . . 1 Detach . | . . . Swap 2 | . 2 . Drop 1 | . . 1 Fire 17 | . 8 9 Melee . | . . . Ram 1 | . . 1 Kick . | . . . Crush . | . . . Escape Stasis . | . . . Rewire . | . . . Trap . | . . . Miscellaneous . | . . . Route ------- -11/Scrapyard -10/Materials (discovered 4 exits: [*Mat x3] / Min) -9/Materials (discovered 1 exit: [*Min]) History --------- Turn | Location | Event 1 | -11/Scrapyard | Discovered new exit (range 1) 4 | -11/Scrapyard | Entered Materials 12 | -10/Materials | Identified exit to Mines 146 | -10/Materials | Discovered new exit (range 3) 318 | -10/Materials | Build established: Mutant 438 | -10/Materials | Discovered new exit (range 16) 472 | -10/Materials | Discovered new exit (range 13) 482 | -10/Materials | Entered another Materials area 482 | -9/Materials | Evolved 2 slots: Propulsion x1, Utility x1 598 | -9/Materials | Discovered new exit (range 13) 678 | -9/Materials | Core integrity fell below 50% 686 | -9/Materials | Core integrity fell below 20% 696 | -9/Materials | Destroyed by G-34 Mercenary with Small Laser Last Messages --------------- 00612_ W-16 Scout sends out distress signal. 00619_ R-06 Scavenger collects Lgt. Ion Engine. 00621_ S-10 Pest destroyed. 00622_ R-06 Scavenger collects Lgt. Assault Rifle. 00630_ Hvy. EM Pulse Gun destroyed. 00632_ Wheel destroyed. 00635_ Slammed into S-10 Pest. 00636_ W-16 Scout sends out distress signal. 00644_ Com. Wheel destroyed. 00646_ Acquired Hrd. Light Armor Plating. 00649_ Critical hit (Burn: +37). 00654_ ALERT: Hostiles spotted, dispatching reinforcements to Terminal M001. 00660_ Assault Rifle destroyed. 00671_ Critical hit (Burn: +37). 00672_ Med. Laser destroyed. 00673_ Critical hit (Burn: +37). 00676_ W-16 Scout sends out distress signal. 00677_ Ion Engine destroyed. 00679_ Hrd. Light Armor Plating destroyed. 00689_ T-07 Excavator is excavating. Map ----- +----------------------------------------------------+ | | | | | | | | | | | | | | | | | | | | | | | | | | | | | | | | | | | ????????????????????????????????????????????????? | | ????????????????????????????????????????????????? | | ????????????????????????????????????????????????? | | ??????????????????????##????????????????????????? | | ?????????????????????? ????????????????????????? | | ???????????????????####t#########+#?????????????? | | ???????????????????? ??????????????? | | ?????????????????????? ??????????????????? | | ???????????????????????#@ #?????????????????????? | | ???????????????????????# #?????????????????????? | | ???????????????????????# #???????????? #??????? | | ???????????????????????# #???????????# #?#####? | | ???????????????????????# #???????????# #?# #? | | ???????????????????????# #???????????# #?# #? | | ???????????????????????# #???????????# #?# #? | | ???????????????????????# ############# ### ## | | ???????????????????????# """"" | | ???????????????????????#gg""T"" | | ???????????????????????# Y | | ?????????????????###+###g ## | | ?????????? ggg #? | | ?????????? """ """ """ """ #? | | ?????????? """ """ """ """ #? | | ??????????? """ """ """ """ #? | | ??????????? #? | | ???????????? #? | | ??????????? #######################+## | | ???????????? ????????????????????# | | ????????????######## ????????????????????# | | ???????????????????# ????????????????????# """" | | ???????????????????+ ????????????????????# """" | | ???????????????????# ????????????????????# """" | | ???????????????????# ?????????????????????# """" | +----------------------------------------------------+ Best States ------------- Heat Dissipation 28 Energy Generation 10 Energy Capacity 250 Matter Stores 295 Matter Capacity 300 Sight Range 16 Terrain Scan Density 10 Armor Coverage 150 Evasion (%) 50 Item Schematics ----------------- None Robot Schematics ------------------ None Fabricated ------------ Nothing Alien Tech Used ----------------- None Achievements -------------- None Challenges ------------ None Game ------ Seed AluminumBurstDrive Manual? 0 Play Time 00:12:14 Cumulative 111.4 hours Start 2021.06.04 @ 11:47:34 End 2021.06.04 @ 11:58:17 Sessions 1 Manual Loads 0 Difficulty Rogue Special Mode None Game No. 203 Rogue 200 Adventurer 1 Explorer 2 Win Type - Total 4 Types 4/0/0/0/0/0/0/0/0 Lore% 62 Gallery% 61 Achievement% 53 Wizard Run 0 Options --------- ASCII 0 Keyboard 1 Movement Numpad Keybinds 0 Fullscreen 2 Font 12/Smallcaps Map View 83x54 Tactical HUD 1 Map Filters NONE Filters NONE Steam 1 RUN: 074d5ce6-e841-401d-b191-2e676801eb3c